bitfinex/quotes_ETHUSD_20250507
["timestamp","ask_amount","ask_price","bid_price","bid_amount"]
[1746624465895,5.47690168,1825.9,1825.6,0.88487043]
[1746624466578,10.95390873,1825.9,1825.6,0.88487043]
[1746624466779,5.47690168,1825.9,1825.6,0.88487043]
[1746624467011,10.95390056,1825.9,1825.6,0.88487043]
[1746624467207,5.47690168,1825.9,1825.6,0.88487043]
[1746624467417,5.47690168,1825.9,1825.7,0.764]
[1746624468705,5.47661171,1826.0,1825.7,0.764]
[1746624468882,5.47661171,1826.0,1825.7,3.91648627]
[1746624469078,5.47675119,1825.9,1825.8,0.39164863]
[1746624469296,5.47675119,1825.9,1825.8,5.493]
[1746624471487,5.47658436,1826.0,1825.8,5.493]
[1746624471821,5.47675119,1825.9,1825.8,5.493]
[1746624480331,5.47735115,1825.7,1825.6,5.491]
[1746624480540,6.22915118,1825.6,1825.5,3.68596551]
[1746624481684,5.47765118,1825.6,1825.5,3.68596551]
[1746624484229,8.47735115,1825.7,1825.3,5.491]
[1746624484230,5.47825134,1825.4,1825.3,5.491]
[1746624484389,5.47825134,1825.4,1825.3,6.16210746]
[1746624489421,3.0,1825.7,1825.3,6.16210746]
[1746624489728,5.47825134,1825.4,1825.3,6.16210746]
[1746624490696,5.47825134,1825.4,1825.3,5.491]
[1746624494432,5.47782649,1825.6,1825.3,11.79020528]
[1746624494610,10.9557287,1825.6,1825.3,6.2569]
[1746624495031,5.47795166,1825.5,1825.3,6.2569]
[1746624495729,5.47795863,1825.5,1825.3,6.2569]
[1746624496250,5.47795863,1825.5,1825.4,0.62569]
[1746624500458,5.47782649,1825.6,1825.4,0.62569]
[1746624500865,10.95575086,1825.6,1825.4,0.62569]
[1746624501171,5.47795124,1825.5,1825.4,0.62569]
[1746624502292,5.47782649,1825.6,1825.4,0.62569]
[1746624502499,10.95575267,1825.6,1825.4,0.62569]
[1746624502637,5.47782649,1825.6,1825.4,0.62569]
[1746624502988,5.47795124,1825.5,1825.4,0.62569]
[1746624503470,5.47782649,1825.6,1825.4,0.62569]
[1746624503903,5.47733832,1825.8,1825.5,0.8255]
[1746624504035,5.47748933,1825.7,1825.5,1.28586763]
[1746624504372,5.47693731,1825.9,1825.5,1.28586763]
[1746624504606,5.47723289,1825.8,1825.5,1.28586763]
[1746624505075,5.47693731,1825.9,1825.7,0.7595]
[1746624505380,10.95327227,1826.0,1825.8,5.492]
[1746624506454,5.47675119,1825.9,1825.8,5.492]
[1746624506665,5.47675119,1825.9,1825.8,6.11715]
[1746624508278,5.47675119,1825.9,1825.8,5.492]
[1746624518883,5.47659206,1826.0,1825.8,5.492]
[1746624519598,5.47675119,1825.9,1825.8,5.492]
[1746624520780,5.47659206,1826.0,1825.8,5.492]
[1746624521863,5.47675119,1825.9,1825.8,5.492]
[1746624529633,5.47713479,1825.8,1825.6,26.5946]
[1746624529910,5.47713479,1825.8,1825.7,5.489]
[1746624532788,5.47705115,1825.8,1825.7,5.489]
[1746624532988,10.95395135,1825.9,1825.7,5.489]
[1746624533615,5.47705115,1825.8,1825.7,5.489]
[1746624534317,5.47735115,1825.7,1825.6,25.775]
[1746624534516,5.47735115,1825.7,1825.6,31.264]
[1746624535416,5.47621288,1826.1,1825.6,31.264]
[1746624535417,5.47525186,1826.4,1825.8,5.47694858]
[1746624535617,5.4757275,1826.3,1825.8,14.72419775]
[1746624535938,5.47615331,1826.1,1825.8,9.19248627]
[1746624536299,5.47615331,1826.1,1825.8,6.04]
[1746624536499,5.47615331,1826.1,1825.9,0.604]
[1746624536726,5.47666514,1826.0,1825.8,6.04]
[1746624536925,5.47666514,1826.0,1825.7,6.7955]
[1746624537131,6.2288816,1826.1,1825.9,5.489]
[1746624537309,5.47645125,1826.0,1825.9,5.489]
[1746624537999,6.2288816,1826.1,1825.9,5.489]
[1746624538200,5.4762816,1826.1,1825.9,5.489]
[1746624538412,5.4762816,1826.1,1826.0,5.489]
[1746624540750,6.26572908,1826.0,1825.7,9.72596551]
[1746624540921,5.47675363,1825.9,1825.8,5.489]
[1746624547069,6.26570655,1826.0,1825.8,5.489]
[1746624547273,5.47675119,1825.9,1825.8,5.489]
[1746624548926,5.47729174,1825.8,1825.6,29.46096551]
[1746624549130,5.47735115,1825.7,1825.6,29.46096551]
[1746624549327,5.47735115,1825.7,1825.6,31.261]
[1746624553677,5.47735115,1825.7,1825.6,25.221]
[1746624555677,5.47735115,1825.7,1825.6,5.486]
[1746624569202,5.47735115,1825.7,1825.6,6.8258]
[1746624569507,5.47735115,1825.7,1825.6,6.0346]
[1746624570206,5.47735115,1825.7,1825.6,5.486]
[1746624570415,5.47795124,1825.5,1825.2,30.27903691]
[1746624570698,5.47855147,1825.3,1825.2,23.43223691]
[1746624570879,5.47855147,1825.3,1825.2,28.92023691]
[1746624571302,5.47855147,1825.3,1825.2,31.93053278]
[1746624572411,5.47855147,1825.3,1825.2,31.92753278]
[1746624574139,5.47855147,1825.3,1825.2,28.23129587]
[1746624577260,5.47838025,1825.4,1825.2,28.23129587]
[1746624577440,5.47838025,1825.4,1825.2,25.221]
[1746624577804,5.47795725,1825.5,1825.2,25.221]
[1746624578443,10.95617934,1825.5,1825.2,25.221]
[1746624578640,5.47795725,1825.5,1825.2,25.221]
[1746624579222,10.95614499,1825.5,1825.2,25.221]
[1746624579426,10.95617787,1825.5,1825.2,25.221]
[1746624579623,5.47835922,1825.4,1825.3,5.486]
[1746624581438,6.26129942,1825.6,1825.3,5.486]
[1746624581637,5.47806741,1825.5,1825.3,5.486]
[1746624582351,10.95627295,1825.5,1825.3,5.486]
[1746624582765,10.9562497,1825.5,1825.3,8.06298321]
[1746624583055,5.47806741,1825.5,1825.4,0.7543]
[1746624590584,5.47825134,1825.4,1825.3,6.305]
[1746624591089,5.47783345,1825.6,1825.3,6.305]
[1746624591247,5.47783345,1825.6,1825.5,0.8155]
[1746624591648,5.4774862,1825.7,1825.5,0.8155]
[1746624591861,10.95509584,1825.7,1825.5,0.8155]
[1746624592386,5.47735115,1825.7,1825.3,0.8176]
[1746624592696,5.47735115,1825.7,1825.6,5.486]
[1746624601148,5.47825134,1825.4,1825.2,25.225]
[1746624601383,9.40183774,1825.3,1825.2,25.225]
[1746624601588,6.24935147,1825.3,1825.2,5.485]
[1746624601890,5.47855147,1825.3,1825.2,5.485]
[1746624602450,11.63103774,1825.3,1825.2,5.485]
[1746624602680,12.38413774,1825.3,1825.2,5.485]
[1746624602875,5.47975231,1824.9,1824.8,4.78580703]
[1746624603203,8.63223858,1824.9,1824.8,10.26880703]
[1746624603566,11.63223858,1824.9,1824.8,10.26880703]
[1746624604953,5.47975231,1824.9,1824.8,10.26880703]
[1746624605087,5.47925257,1825.1,1824.8,11.29568773]
[1746624605088,5.47932199,1825.1,1824.8,11.29568773]
[1746624605277,5.47932199,1825.1,1824.9,0.84279639]
[1746624605474,5.47900884,1825.2,1824.9,0.84279004]
[1746624605696,10.95813682,1825.2,1824.9,0.84279004]
[1746624605982,5.47900884,1825.2,1824.9,0.84279004]
[1746624606171,8.47798681,1825.5,1824.9,0.788]
[1746624606172,5.4783216,1825.4,1824.9,0.788]
[1746624606371,5.47945205,1825.0,1824.9,1.55913359]
[1746624606801,5.47945205,1825.0,1824.8,1.0268807]
[1746624606958,5.4800526,1824.8,1824.7,4.49625016]
[1746624607164,5.4800526,1824.8,1824.7,9.98025016]
[1746624607704,5.47987513,1824.9,1824.7,9.98025016]
[1746624607867,5.4800526,1824.8,1824.7,7.28452502]
[1746624608562,5.4796135,1825.0,1824.7,7.28452502]
[1746624608758,10.95933339,1825.0,1824.7,7.33932108]
[1746624608959,5.4796135,1825.0,1824.7,7.33932108]
[1746624609161,5.47975373,1824.9,1824.8,0.73393211]
[1746624609363,5.4796135,1825.0,1824.8,0.73393211]
[1746624609604,10.9593269,1825.0,1824.8,0.73393211]
[1746624609906,5.4796135,1825.0,1824.8,0.73393211]
[1746624610302,5.47931708,1825.1,1824.8,0.73393211]
[1746624610504,5.47900414,1825.2,1824.9,0.0547931]
[1746624610505,5.47905186,1825.2,1824.9,0.0547931]
[1746624610704,5.47945205,1825.0,1824.9,0.62686506]
[1746624611017,5.47945205,1825.0,1824.8,0.73393211]
[1746624611246,5.47975231,1824.9,1824.7,7.28452502]
[1746624611784,5.4800526,1824.8,1824.7,6.2865]
[1746624612208,5.4800526,1824.8,1824.7,5.484]
[1746624612405,5.48065329,1824.6,1824.5,0.8285]
[1746624612604,5.48053198,1824.7,1824.5,6.3125]
[1746624612810,5.48065329,1824.6,1824.5,6.3125]
[1746624613128,10.96112042,1824.7,1824.5,6.3125]
[1746624613512,5.48065329,1824.6,1824.5,6.3125]
[1746624614522,5.48015678,1824.8,1824.5,6.3125]
[1746624614697,5.48015678,1824.8,1824.5,15.37095861]
[1746624614892,5.47959126,1825.0,1824.7,0.8245]
[1746624615114,5.47924869,1825.1,1824.8,5.4800196]
[1746624615303,5.47924869,1825.1,1824.9,5.53879245]
[1746624615506,5.47945205,1825.0,1824.9,6.03787924]
[1746624615743,5.47945205,1825.0,1824.9,5.484]
[1746624617815,5.48065329,1824.6,1824.5,3.69375016]
[1746624618143,5.48065329,1824.6,1824.5,9.17775016]
[1746624618519,5.48048264,1824.7,1824.5,9.17775016]
[1746624618818,5.48065329,1824.6,1824.5,9.17775016]
[1746624619446,5.48015887,1824.8,1824.5,10.06550243]
[1746624619604,5.48015887,1824.8,1824.6,0.8325]
[1746624619801,5.48035293,1824.7,1824.6,0.8325]
[1746624620334,5.48035293,1824.7,1824.5,6.37175227]
[1746624621947,5.48065329,1824.6,1824.5,6.37175227]
[1746624622325,5.48065329,1824.6,1824.5,5.484]
[1746624629416,0.7593,1825.1,1824.5,5.484]
[1746624629622,5.48008806,1824.8,1824.5,5.53880269]
[1746624629842,5.47924768,1825.1,1824.6,0.8007]
[1746624630043,5.47984637,1824.9,1824.7,0.05479689]
[1746624630242,5.47954456,1825.0,1824.7,0.63359865]
[1746624630450,5.47954456,1825.0,1824.7,0.68839423]
[1746624630758,5.4800526,1824.8,1824.7,0.63359865]
[1746624630917,5.4800526,1824.8,1824.6,0.8007]
[1746624631473,5.47995954,1824.9,1824.6,0.8007]
[1746624632064,5.47928263,1825.1,1824.8,0.7654]
[1746624632246,10.95868291,1825.1,1824.9,5.53979147]
[1746624632422,5.47928263,1825.1,1824.9,5.53979147]
[1746624632633,5.47928263,1825.1,1824.9,5.485]
[1746624632634,5.47945205,1825.0,1824.9,5.485]
[1746624633069,5.47945205,1825.0,1824.9,6.11004]
[1746624634462,0.7868,1825.4,1824.9,6.16483299]
[1746624634667,5.4791421,1825.2,1824.9,6.11004]
[1746624634868,5.4791421,1825.2,1825.0,0.8052]
[1746624635033,5.4791421,1825.2,1825.0,1.496724]
[1746624635363,5.47915182,1825.1,1825.0,1.496724]
[1746624636064,5.47915182,1825.1,1825.0,0.691524]
[1746624637171,5.47903859,1825.2,1825.0,1.484424]
[1746624637372,5.47915182,1825.1,1825.0,1.484424]
[1746624637865,5.47945205,1825.0,1824.9,5.485]
[1746624640583,5.47915182,1825.1,1824.9,5.485]
[1746624640796,0.8181,1825.6,1825.0,4.01283468]
[1746624640991,5.47841353,1825.4,1825.2,0.8022]
[1746624641159,5.47841353,1825.4,1825.3,5.493]
[1746624642057,5.47841353,1825.4,1825.3,6.2801]
[1746624642399,5.47841353,1825.4,1825.3,5.493]
[1746624643092,9.40495723,1825.4,1825.3,5.493]
[1746624643260,6.24911353,1825.4,1825.3,5.493]
[1746624644158,5.47841353,1825.4,1825.3,5.493]
[1746624647916,5.47813399,1825.5,1825.3,5.493]
[1746624648097,10.95636623,1825.5,1825.3,6.11863]
[1746624648416,5.47813399,1825.5,1825.3,6.11863]
[1746624648831,10.95560005,1825.6,1825.3,6.11863]
[1746624649323,5.47646616,1826.0,1825.4,0.85867759]
[1746624649324,10.95505952,1825.7,1825.4,0.85867759]
[1746624649485,5.4774256,1825.7,1825.4,2.00873334]
[1746624649989,9.29196119,1826.0,1825.4,2.00873334]
[1746624650213,10.95522521,1825.7,1825.4,2.00873334]
[1746624650515,5.47714205,1825.8,1825.4,7.48670597]
[1746624650722,5.47737236,1825.7,1825.6,0.7564]
[1746624651025,10.95389894,1825.9,1825.6,6.2484]
[1746624651328,5.47691219,1825.9,1825.6,6.2484]
[1746624651619,5.47708249,1825.8,1825.6,6.2484]
[1746624651821,5.47708249,1825.8,1825.7,0.62484]
[1746624652020,5.47735115,1825.7,1825.6,6.2484]
[1746624652227,5.47708249,1825.8,1825.6,6.2484]
[1746624652726,5.47735115,1825.7,1825.6,6.2484]
[1746624653302,5.47708249,1825.8,1825.6,6.2484]
[1746624653527,5.47723713,1825.8,1825.6,6.2484]
[1746624653732,10.95391518,1825.9,1825.6,6.2484]
[1746624654033,5.4768933,1825.9,1825.7,0.05477021]
[1746624654208,5.47715027,1825.8,1825.6,6.2484]
[1746624654404,5.47735115,1825.7,1825.6,6.87324]
[1746624654730,5.47715027,1825.8,1825.6,6.87324]
[1746624654926,5.47692765,1825.9,1825.6,6.87324]
[1746624655134,5.47709214,1825.8,1825.6,6.87324]
[1746624655342,5.47689588,1825.9,1825.6,6.87324]
[1746624656244,5.47718806,1825.8,1825.6,6.87324]
[1746624657045,5.47690039,1825.9,1825.6,6.87324]
[1746624657346,8.47589899,1826.2,1825.9,0.787]
[1746624657347,5.47610174,1826.2,1825.9,0.787]
[1746624657542,5.47610174,1826.2,1826.0,5.491]
[1746624657747,5.47574445,1826.3,1826.0,5.54575817]
[1746624657922,5.47574445,1826.3,1826.0,1.18093641]
[1746624658119,5.47540237,1826.4,1826.2,0.8115]
[1746624658325,5.47534658,1826.4,1826.2,0.8115]
[1746624659023,5.47555166,1826.3,1826.2,0.8115]
[1746624659335,5.47555166,1826.3,1826.1,6.2983]
[1746624659522,6.22555616,1826.6,1826.2,0.62983]
[1746624659523,5.47540429,1826.4,1826.2,0.62983]
[1746624659718,5.47555166,1826.3,1826.2,0.62983]
[1746624659926,5.47551908,1826.4,1826.1,6.2983]
[1746624660120,5.47495209,1826.5,1826.1,6.2983]
[1746624660320,5.47564063,1826.3,1826.1,5.491]
[1746624660640,10.95146015,1826.3,1826.1,5.491]
[1746624660843,5.47564063,1826.3,1826.1,6.0401]
[1746624661143,6.22555773,1826.6,1826.1,6.0401]
[1746624661144,5.47539728,1826.4,1826.1,6.0401]
[1746624661357,10.95089209,1826.4,1826.1,6.0401]
[1746624661659,10.95089209,1826.4,1826.2,0.60401]
[1746624661949,6.28565946,1827.1,1826.5,6.2558778]
[1746624662137,6.28565946,1827.1,1826.7,5.47415301]
[1746624662138,5.47335946,1827.1,1826.7,5.47415301]
[1746624662310,5.47335946,1827.1,1826.8,1.35374885]
[1746624662950,5.47287321,1827.2,1826.8,6.82757931]
[1746624664055,5.47256877,1827.3,1826.9,5.47364342]
[1746624664242,5.47195855,1827.5,1827.0,5.571]
[1746624664432,5.47315417,1827.1,1827.0,5.571]
[1746624664626,5.47289919,1827.2,1827.0,5.571]
[1746624664843,5.47300218,1827.2,1827.0,5.571]
[1746624665042,5.47206288,1827.5,1827.1,5.47299341]
[1746624665242,5.8379403,1827.7,1827.3,5.47237324]
[1746624665243,5.47149866,1827.7,1827.3,5.47237324]
[1746624665442,5.47154285,1827.7,1827.4,5.571]
[1746624665646,6.24321382,1827.8,1827.4,5.571]
[1746624665647,0.772,1827.8,1827.4,5.571]
[1746624665844,5.47108719,1827.8,1827.4,11.04303063]
[1746624666045,5.47150345,1827.7,1827.4,6.7164635]
[1746624666353,10.94360364,1827.6,1827.4,5.571]
[1746624666532,6.23149406,1827.7,1827.4,5.571]
[1746624666732,5.47179829,1827.6,1827.4,5.571]
[1746624667153,5.47195622,1827.5,1827.4,5.571]
[1746624667556,5.47185551,1827.6,1827.4,5.571]
[1746624667979,5.47195622,1827.5,1827.4,5.571]
[1746624668577,5.47184686,1827.6,1827.4,5.571]
[1746624668974,5.47195622,1827.5,1827.4,5.571]
[1746624669774,5.47179827,1827.6,1827.4,5.571]
[1746624670156,5.47179827,1827.6,1827.4,6.1281]
[1746624670976,5.47186464,1827.6,1827.4,6.1281]
[1746624671341,5.47151671,1827.7,1827.4,6.1281]
[1746624671783,0.8148,1827.9,1827.4,6.1281]
[1746624671950,6.28560303,1827.9,1827.4,6.1281]
[1746624672150,5.47116929,1827.8,1827.5,1.40101]
[1746624672357,5.47165681,1827.6,1827.5,1.40101]
[1746624672646,12.12905149,1828.1,1827.5,0.61281]
[1746624672878,5.47125093,1827.8,1827.5,0.61281]
[1746624673177,5.47152304,1827.7,1827.5,0.61281]
[1746624673382,5.47047565,1828.0,1827.5,0.61281]
[1746624673383,5.47059044,1828.0,1827.6,5.47163933]
[1746624673707,5.47033259,1828.1,1827.8,0.7537]
[1746624673978,5.46986168,1828.2,1827.9,5.62270493]
[1746624674143,5.47019739,1828.1,1827.9,5.568]
[1746624674349,5.47019739,1828.1,1828.0,0.5568]
[1746624674581,5.47019739,1828.1,1827.9,5.568]
[1746624674582,5.47045951,1828.0,1827.9,5.568]
[1746624675085,5.47001961,1828.2,1827.9,5.568]
[1746624675297,5.47011373,1828.2,1827.9,5.568]
[1746624675589,6.27029657,1828.5,1828.0,0.0546979]
[1746624675590,5.46937273,1828.4,1828.0,0.0546979]
[1746624675796,0.8013,1828.5,1828.0,0.56226979]
[1746624675951,5.47016027,1828.1,1828.0,0.56226979]
[1746624676350,10.94000858,1828.2,1828.0,0.56226979]
[1746624676684,5.46969936,1828.3,1828.0,0.61696875]
[1746624677189,5.46973359,1828.3,1828.0,0.61696875]
[1746624677387,5.47016027,1828.1,1828.0,0.56226979]
[1746624678047,5.46973702,1828.3,1828.0,0.56226979]
[1746624678248,5.46959096,1828.3,1828.0,0.56226979]
[1746624678549,5.46959096,1828.3,1828.1,0.7833]
[1746624678903,5.46986106,1828.2,1828.1,0.7833]
[1746624679079,5.46959096,1828.3,1827.9,5.568]
[1746624679080,5.47045951,1828.0,1827.9,6.3816]
[1746624679386,5.47045951,1828.0,1827.9,7.01976]
[1746624680680,5.47016027,1828.1,1827.9,7.01976]
[1746624680858,5.47045951,1828.0,1827.9,5.568]
[1746624681064,5.47135744,1827.7,1827.6,20.5485]
[1746624681263,5.47118369,1827.8,1827.6,26.1155]
[1746624681592,5.47096171,1827.9,1827.6,26.1155]
[1746624681802,5.47093292,1827.9,1827.7,2.61155]
[1746624681984,5.47062825,1828.0,1827.7,2.61155]
[1746624682162,5.47005732,1828.2,1827.9,0.8082]
[1746624682365,5.46970925,1828.3,1828.0,5.62069762]
[1746624682561,5.4693945,1828.4,1828.1,0.56206976]
[1746624682768,5.46974083,1828.3,1828.1,0.56206976]
[1746624683280,5.46974083,1828.3,1828.2,0.8082]
[1746624686206,5.46911435,1828.5,1828.2,0.8082]
[1746624686376,5.46949647,1828.4,1828.2,1.49770932]
[1746624686581,5.46986106,1828.2,1828.1,0.56206976]
[1746624686804,5.46986106,1828.2,1828.1,5.566]
[1746624687125,5.47067163,1828.0,1827.8,0.7534]
[1746624687288,5.47075879,1827.9,1827.7,2.61155]
[1746624687615,5.4710581,1827.8,1827.7,2.61155]
[1746624687834,5.4710581,1827.8,1827.7,8.17755]
[1746624688376,5.47075879,1827.9,1827.7,8.17755]
[1746624688625,5.47060915,1828.0,1827.8,0.817755]
[1746624688927,5.47075879,1827.9,1827.7,8.17755]
[1746624689081,5.4710581,1827.8,1827.7,5.566]
[1746624689472,10.94176182,1827.9,1827.7,5.566]
[1746624689674,5.47075879,1827.9,1827.7,5.62070765]
[1746624689878,5.46942431,1828.4,1827.8,0.8164]
[1746624690078,5.47045951,1828.0,1827.9,0.05470132]
[1746624690278,5.47135744,1827.7,1827.6,20.5384]
[1746624690516,5.47135744,1827.7,1827.6,28.15724]
[1746624691119,5.47135744,1827.7,1827.6,27.34084]
[1746624692177,5.47095224,1827.9,1827.7,0.8211]
[1746624692414,0.8059,1828.1,1827.7,0.87580765]
[1746624692711,5.47063865,1828.0,1827.7,0.87580765]
[1746624692913,5.4703163,1828.1,1827.7,6.29243758]
[1746624693121,5.47048472,1828.0,1827.8,0.62924376]
[1746624693713,5.47047466,1828.0,1827.8,0.62924376]
[1746624694520,5.47047466,1828.0,1827.7,0.8211]
[1746624694892,5.47036489,1828.1,1827.8,0.05470261]
[1746624695417,6.26744769,1828.4,1827.8,0.05470261]
[1746624695418,5.46866455,1828.6,1828.0,0.8268]
[1746624695595,5.46986106,1828.2,1828.1,5.65]
[1746624696201,5.4698007,1828.3,1828.1,6.215]
[1746624696614,5.46941275,1828.4,1828.1,6.215]
[1746624697110,5.46910099,1828.5,1828.2,0.81579537]
[1746624697328,5.46910099,1828.5,1828.2,0.7611]
[1746624697704,5.46910099,1828.5,1828.3,0.0546896]
[1746624698821,5.46926274,1828.4,1828.2,0.7611]
[1746624699328,5.46866455,1828.6,1828.2,2.00570341]
[1746624699510,5.46956188,1828.3,1828.2,1.24460341]
[1746624699715,5.46956188,1828.3,1828.1,6.6185053]
[1746624700105,5.46938862,1828.4,1828.1,6.6185053]
[1746624700309,5.46908716,1828.5,1828.2,0.05469312]
[1746624700512,5.46908716,1828.5,1828.3,0.7582]
[1746624700718,5.4688397,1828.6,1828.3,0.7582]
[1746624700917,5.46901194,1828.5,1828.3,0.7582]
[1746624701842,5.4688397,1828.6,1828.3,0.7582]
[1746624702152,5.46819106,1828.8,1828.3,0.7582]
[1746624702308,5.4683692,1828.7,1828.4,0.05468862]
[1746624702647,5.4683692,1828.7,1828.5,5.65]
[1746624702845,5.46857369,1828.7,1828.5,6.22046886]
[1746624703021,10.93723297,1828.7,1828.5,6.22046886]
[1746624703217,5.46866455,1828.6,1828.5,6.22046886]
[1746624703841,5.46866455,1828.6,1828.5,5.65]
[1746624704415,5.46806649,1828.8,1828.5,5.65]
[1746624704613,5.46866455,1828.6,1828.5,5.65]
[1746624705378,5.46926274,1828.4,1828.3,0.7582]
[1746624705584,5.46926274,1828.4,1828.3,6.4072]
[1746624705885,5.46899032,1828.5,1828.3,7.04792]
[1746624706061,5.46926274,1828.4,1828.3,1.39892]
[1746624706257,5.4691278,1828.5,1828.3,6.4072]
[1746624707150,5.46926274,1828.4,1828.3,5.649]
[1746624707351,10.93836992,1828.5,1828.3,5.649]
[1746624707551,5.4691278,1828.5,1828.3,5.649]
[1746624707781,5.4691278,1828.5,1828.3,6.2139]
[1746624707975,5.46884093,1828.6,1828.4,0.7834]
[1746624708466,5.46896363,1828.5,1828.4,0.7834]
[1746624709105,5.46884093,1828.6,1828.4,0.7834]
[1746624709399,5.46883007,1828.6,1828.4,0.7834]
[1746624709605,0.8083,1828.8,1828.4,1.488599]
[1746624709805,5.46867481,1828.6,1828.4,1.488599]
[1746624710012,5.46838395,1828.7,1828.4,6.95768949]
[1746624710321,5.46838395,1828.7,1828.4,1.488599]
[1746624710498,10.93699631,1828.7,1828.4,1.488599]
[1746624710799,5.46838395,1828.7,1828.4,6.95784016]
[1746624711002,5.46838395,1828.7,1828.5,0.69578402]
[1746624711321,5.46838395,1828.7,1828.4,1.488599]
[1746624711465,5.46838395,1828.7,1828.5,0.05468319]
[1746624712101,5.46824367,1828.8,1828.5,0.05468319]
[1746624712365,5.46839113,1828.7,1828.5,0.05468319]
[1746624712568,5.46824367,1828.8,1828.5,0.05468319]
[1746624712800,5.46838335,1828.7,1828.5,0.75593313]
[1746624713017,5.46816572,1828.8,1828.5,0.75593313]
[1746624713220,5.46841734,1828.7,1828.5,0.75593313]
[1746624713380,5.46840768,1828.7,1828.5,0.75593313]
[1746624713581,5.46816572,1828.8,1828.5,0.75593313]
[1746624714020,5.46837863,1828.7,1828.5,0.75593313]
[1746624714320,5.46816572,1828.8,1828.5,0.75593313]
[1746624714523,5.46832877,1828.8,1828.5,0.75593313]
[1746624714718,5.46831945,1828.8,1828.5,0.75593313]
[1746624714895,10.93666741,1828.8,1828.5,0.75593313]
[1746624715309,5.46831945,1828.8,1828.5,6.22483367]
[1746624715511,5.46831945,1828.8,1828.6,0.62248337]
[1746624715705,5.46831945,1828.8,1828.7,5.649]
[1746624716030,5.46831945,1828.8,1828.7,6.4325]
[1746624716321,5.46790633,1828.9,1828.7,6.4325]
[1746624716932,5.74943497,1830.4,1829.2,0.8164]
[1746624717102,5.74943497,1830.4,1829.3,5.70365634]
[1746624717103,5.46559476,1829.7,1829.3,5.70365634]
[1746624717307,5.46547764,1829.7,1829.3,11.17017065]
[1746624717509,5.46547764,1829.7,1829.2,6.28301548]
[1746624717510,5.82322428,1829.7,1829.2,0.8164]
[1746624717703,5.46584342,1829.6,1829.4,5.649]
[1746624717920,5.46575606,1829.6,1829.4,5.649]
[1746624718231,5.46554564,1829.7,1829.4,5.649]
[1746624718530,5.46545046,1829.7,1829.4,6.2139]
[1746624718726,5.46520418,1829.8,1829.4,11.68014665]
[1746624718929,5.46555489,1829.7,1829.4,6.2139]
[1746624720231,5.46538021,1829.7,1829.4,6.2139]
[1746624720428,5.46581916,1829.6,1829.4,6.2139]
[1746624720631,0.8092,1829.9,1829.4,6.2139]
[1746624720797,0.8092,1829.9,1829.5,0.62139]
[1746624720993,5.46520765,1829.8,1829.5,0.67604427]
[1746624721226,6.27411017,1829.9,1829.5,6.14200273]
[1746624721429,6.27411017,1829.9,1829.5,6.91498386]
[1746624721614,5.4653259,1829.8,1829.6,0.69149839]
[1746624721943,5.46591922,1829.6,1829.4,5.649]
[1746624722419,5.46591922,1829.6,1829.3,0.7731]
[1746624722822,5.46551778,1829.7,1829.4,5.647]
[1746624723026,5.46569295,1829.6,1829.4,5.647]
[1746624723226,5.46558349,1829.7,1829.4,5.647]
[1746624723437,5.46586962,1829.6,1829.4,5.647]
[1746624723620,6.2221743,1829.5,1829.4,5.647]
[1746624724020,5.4659743,1829.5,1829.4,5.647]
[1746624725554,0.7854,1830.1,1829.5,0.8118]
[1746624725846,5.4653874,1829.7,1829.5,2.00430665]
[1746624726751,6.24964764,1830.1,1829.5,2.00430665]
[1746624727049,5.46554261,1829.7,1829.5,2.00430665]
[1746624727219,5.46567555,1829.6,1829.5,1.19250665]
[1746624727424,5.46557816,1829.7,1829.4,5.647]
[1746624728047,5.46569144,1829.6,1829.4,5.647]
[1746624728350,5.46477949,1829.9,1829.4,5.647]
[1746624728351,5.46558131,1829.7,1829.4,5.647]
[1746624728502,5.46558131,1829.7,1829.4,5.70165469]
[1746624728698,5.46558131,1829.7,1829.5,0.57016547]
[1746624729328,5.46558131,1829.7,1829.4,5.647]
[1746624729329,5.46567555,1829.6,1829.4,5.647]
[1746624729527,6.21615118,1829.7,1829.4,5.647]
[1746624730119,5.46579639,1829.6,1829.4,5.647]
[1746624731121,0.8217,1830.2,1829.5,0.8205]
[1746624731326,5.46462336,1830.0,1829.6,5.5201315]
[1746624731547,5.46462336,1830.0,1829.6,5.46548529]
[1746624731751,5.46462336,1830.0,1829.6,5.46547789]
[1746624732055,10.92933264,1830.0,1829.7,0.54654779]
[1746624732359,5.46477949,1829.9,1829.8,5.757]
[1746624732539,5.46462336,1830.0,1829.8,5.757]
[1746624732916,5.46365356,1830.3,1829.9,5.46474361]
[1746624733151,5.46359174,1830.3,1830.0,0.60111595]
[1746624733542,5.46359174,1830.3,1830.0,0.54647436]
[1746624733846,5.46281418,1830.6,1830.1,6.28852175]
[1746624734047,5.4633071,1830.4,1830.2,5.757]
[1746624734259,0.7557,1830.7,1830.3,0.05463265]
[1746624734260,5.46253362,1830.7,1830.3,0.05463265]
[1746624734554,5.46271542,1830.6,1830.2,17.34246034]
[1746624734755,5.46240013,1830.7,1830.3,1.78887003]
[1746624735057,5.46240013,1830.7,1830.3,7.25228063]
[1746624735259,0.7557,1831.0,1830.4,5.757]
[1746624735555,5.46248835,1830.7,1830.5,0.82752602]
[1746624735761,5.46248835,1830.7,1830.5,1.48597862]
[1746624736143,5.46227434,1830.8,1830.5,1.48597862]
[1746624736318,5.46227434,1830.8,1830.5,1.4313526]
[1746624736521,5.46227434,1830.8,1830.6,0.05461967]
[1746624736827,5.46195327,1830.9,1830.6,0.05461967]
[1746624737059,6.28994499,1831.2,1830.6,1.24117854]
[1746624737060,5.46221213,1830.8,1830.6,1.24117854]
[1746624737249,5.46182596,1830.9,1830.5,1.4313526]
[1746624737445,5.46163571,1831.0,1830.6,5.51720786]
[1746624737628,0.11175401,1830.8,1830.6,0.05461748]
[1746624737819,0.11065315,1830.7,1830.6,0.05461748]
[1746624738214,0.4145198,1831.3,1830.9,0.7851]
[1746624738414,0.4145198,1831.3,1831.0,5.8106016]
[1746624738753,5.87517182,1831.3,1831.0,5.81060198]
[1746624738919,0.4145198,1831.3,1831.1,0.5810602]
[1746624739117,5.87513967,1831.3,1831.1,0.5810602]
[1746624739555,5.46089995,1831.2,1831.0,5.756]
[1746624739755,5.8753077,1831.3,1831.0,5.756]
[1746624739941,5.87512156,1831.3,1831.0,5.756]
[1746624740323,5.46091597,1831.2,1830.9,0.7851]